fUST/lending_fUST_20240720
["ID","MTS","AMOUNT","RATE_DAILY","PERIOD"]
[332675852,1721423134158,-228.09885598,0.00014319,2]
[332675853,1721423136848,431.28948156,9.999e-05,2]
[332675854,1721423163684,260.62042326,9.999e-05,2]
[332675855,1721423206169,2122.47397933,0.0001212,2]
[332675856,1721423233171,-1084.513958,0.00014319,2]
[332675859,1721423246130,-500.0,0.00014319,2]
[332675860,1721423248106,-752.73657135,0.00014319,2]
[332675861,1721423249099,-226.89772375,0.00014319,2]
[332675862,1721423251111,-270.18462117,0.00014319,2]
[332675863,1721423258653,470.2848221,9.999e-05,2]
[332675864,1721423258678,48.37684145,9.999e-05,2]
[332675866,1721423315520,3085.40967143,0.0001212,2]
[332675869,1721423334286,182.38550665,0.0001212,2]
[332675870,1721423348256,-201.738142,0.00014255,2]
[332675871,1721423348278,-6190.00346385,0.00014319,2]
[332675872,1721423351123,-166.666666,0.00014795,2]
[332675873,1721423351150,-250.0,0.00014803,2]
[332675874,1721423351174,-250.0,0.00014844,2]
[332675875,1721423351202,-250.0,0.00014884,2]
[332675876,1721423351232,-250.0,0.00014925,2]
[332675877,1721423351257,-250.0,0.00014966,2]
[332675878,1721423351284,-250.0,0.00015006,2]
[332675879,1721423351310,-250.0,0.00015047,2]
[332675880,1721423351336,-250.0,0.00015087,2]
[332675881,1721423351360,-250.0,0.00015128,2]
[332675882,1721423351389,-250.0,0.00015169,2]
[332675883,1721423351411,-300.0,0.00015177,2]
[332675884,1721423351433,-293.756678,0.00015178,2]
[332675885,1721423351454,-153.0,0.00015178,2]
[332675886,1721423351474,-293.756678,0.00015178,2]
[332675887,1721423351497,-153.0,0.00015178,2]
[332675888,1721423351521,-244.56113166,0.00015178,2]
[332675889,1721423366133,-49.19554634,0.00015178,2]
[332675890,1721423366154,-153.0,0.00015178,2]
[332675891,1721423366176,-153.0,0.00015178,2]
[332675892,1721423366462,-153.0,0.00015178,2]
[332675893,1721423366485,-56.74638366,0.00015209,2]
[332675894,1721423378543,249.48409755,0.00014691,2]
[332675895,1721423378569,244.4005724,0.00014691,2]
[332675896,1721423378595,250.0,0.00014691,2]
[332675897,1721423378895,245.0,0.00014691,2]
[332675898,1721423378920,179.24277567,0.00014691,2]
[332675915,1721423432848,-329.16322832,0.00014691,2]
[332675916,1721423432860,-588.11899749,0.00014691,2]
[332675917,1721423432870,-193.25361634,0.00015209,2]
[332675918,1721423432881,-250.0,0.0001525,2]
[332675919,1721423432893,-250.0,0.0001529,2]
[332675920,1721423432902,-250.0,0.00015331,2]
[332675921,1721423432911,-179.27926494,0.00015372,2]
[332675922,1721423432929,-70.72073506,0.00015372,2]
[332675923,1721423432938,-250.0,0.00015412,2]
[332675924,1721423432947,-250.0,0.00015453,2]
[332675925,1721423432956,-250.0,0.00015493,2]
[332675926,1721423432968,-250.0,0.00015534,2]
[332675927,1721423432977,-250.0,0.00015575,2]
[332675928,1721423432986,-153.0,0.000156,2]
[332675929,1721423432995,-206.5463282,0.00015644,2]
[332675930,1721423433005,-206.5463282,0.00015644,2]
[332675931,1721423433014,-206.5463282,0.00015644,2]
[332675932,1721423433024,-2012.42330182,0.00015646,2]
[332675933,1721423433034,-300.0,0.00015699,2]
[332675934,1721423433044,-206.5463282,0.000157,2]
[332675935,1721423433054,-206.5463282,0.000157,2]
[332675936,1721423433063,-206.5463282,0.000157,2]
[332675937,1721423433072,-206.5463282,0.000157,2]
[332675938,1721423433082,-206.5463282,0.000157,2]
[332675939,1721423433091,-206.5463282,0.000157,2]
[332675940,1721423433100,-153.0,0.000157,2]
[332675941,1721423433111,-197.57407581,0.00015708,2]
[332675942,1721423433125,-747.60993372,0.00015708,2]
[332675966,1721423438989,-19800.87648918,0.00015708,2]
[332675967,1721423438999,-322.28215997,0.00015712,2]
[332675968,1721423439008,-1151.90066189,0.0001578,2]
[332675969,1721423439017,-206.5463282,0.000158,2]
[332675970,1721423439026,-206.5463282,0.000158,2]
[332675971,1721423439036,-206.5463282,0.000158,2]
[332675972,1721423439046,-246.4259884,0.000158,2]
[332675973,1721423439058,-5302.51874707,0.00015896,2]
[332675974,1721423439067,-156.50340593,0.00015952,2]
[332675975,1721423439076,-367.2522507,0.00016118,2]
[332675976,1721423439089,-232.2134396,0.00016273,2]
[332675977,1721423439098,-1914.14037123,0.00016338,2]
[332675978,1721423439107,-1163.10603917,0.00016347,2]
[332675979,1721423439116,-2012.4233018,0.00016378,2]
[332675980,1721423439126,-160.28480632,0.00016427,2]
[332675981,1721423439136,-181.62591874,0.00016427,2]
[332675982,1721423439145,-13368.24647224,0.00016428,2]
[332676115,1721423441387,-1067.74095965,0.0001571,2]
[332676118,1721423441399,-284.40589129,0.0001571,2]
[332676120,1721423441408,-2368.90902306,0.00016428,2]
[332676261,1721423443511,-0.00083399,0.00016428,2]
[332676262,1721423443998,-8880.51110187,0.00016428,2]
[332676336,1721423447013,-1297.29454843,0.00016428,2]
[332676338,1721423447026,-1206.59371949,0.00016428,2]
[332676340,1721423447038,-124849.70332992,0.00016428,2]
[332676342,1721423447047,-21710.1798612,0.00016428,2]
[332676344,1721423447058,-500.0,0.00016437,2]
[332676346,1721423447069,-232.06382138,0.00016437,2]
[332676348,1721423447078,-225.71036839,0.00016437,2]
[332676350,1721423447087,-166.89915311,0.00016437,2]
[332676352,1721423447097,-461.04119235,0.00016437,2]
[332676355,1721423447106,-500.0,0.00016437,2]
[332676357,1721423447116,-500.0,0.00016437,2]
[332676358,1721423447125,-414.99179777,0.00016437,2]
[332676360,1721423447134,-500.0,0.00016437,2]
[332676362,1721423447143,-530.37964349,0.00016437,2]
[332676364,1721423447152,-538.7912569,0.00016437,2]
[332676365,1721423447161,-500.0,0.00016437,2]
[332676366,1721423447172,-500.0,0.00016437,2]
[332676367,1721423447181,-500.0,0.00016437,2]
[332676368,1721423447190,-500.0,0.00016437,2]
[332676369,1721423447199,-500.0,0.00016437,2]
[332676370,1721423447208,-500.0,0.00016437,2]
[332676371,1721423447217,-301.64752813,0.00016437,2]
[332676372,1721423447227,-500.0,0.00016437,2]
[332676373,1721423447236,-500.0,0.00016437,2]
[332676374,1721423447246,-590.51293277,0.00016437,2]
[332676375,1721423447255,-500.0,0.00016437,2]
[332676376,1721423447264,-500.0,0.00016438,2]
[332676377,1721423447274,-1108.89,0.00016438,2]
[332676378,1721423447283,-503.43726053,0.00016438,2]
[332676379,1721423447292,-500.0,0.00016438,2]
[332676380,1721423447301,-500.0,0.00016438,2]
[332676381,1721423447311,-887.54,0.00016438,2]
[332676382,1721423447321,-575.39258033,0.00016438,2]
[332676383,1721423447330,-500.0,0.00016438,2]
[332676384,1721423447339,-500.0,0.00016438,2]
[332676385,1721423447348,-500.0,0.00016438,2]
[332676386,1721423447359,-406.13167061,0.00016438,2]
[332676387,1721423447368,-500.0,0.00016438,2]
[332676388,1721423447378,-500.0,0.00016438,2]
[332676389,1721423447387,-500.0,0.00016438,2]
[332676390,1721423447397,-500.0,0.00016438,2]
[332676391,1721423447407,-500.0,0.00016438,2]
[332676392,1721423447417,-500.0,0.00016438,2]
[332676393,1721423447426,-693.0,0.00016438,2]
[332676394,1721423447436,-500.0,0.00016438,2]
[332676395,1721423447446,-1266.06,0.00016438,2]
[332676396,1721423447456,-500.0,0.00016438,2]
[332676397,1721423447466,-522.26319497,0.00016438,2]
[332676398,1721423447476,-500.0,0.00016438,2]
[332676399,1721423447485,-500.0,0.00016438,2]
[332676400,1721423447495,-500.0,0.00016438,2]
[332676401,1721423447504,-500.0,0.00016438,2]
[332676402,1721423447513,-500.0,0.00016438,2]
[332676403,1721423447523,-705.22,0.00016438,2]
[332676404,1721423447533,-500.0,0.00016438,2]
[332676405,1721423447543,-500.0,0.00016438,2]
[332676406,1721423447552,-490.55190426,0.00016438,2]
[332676407,1721423447606,-438.51809574,0.00016438,2]
[332676408,1721423447615,-500.0,0.00016438,2]
[332676409,1721423447625,-500.0,0.00016438,2]
[332676410,1721423447635,-500.0,0.00016438,2]
[332676411,1721423447644,-500.0,0.00016438,2]
[332676412,1721423447654,-515.23803061,0.00016438,2]
[332676413,1721423447663,-501.86511888,0.00016438,2]
[332676414,1721423447672,-1010.14,0.00016438,2]
[332676415,1721423447683,-507.288803,0.00016438,2]
[332676416,1721423447692,-500.0,0.00016438,2]
[332676417,1721423447702,-987.59,0.00016438,2]
[332676418,1721423447711,-500.0,0.00016438,2]
[332676419,1721423447722,-500.0,0.00016438,2]
[332676420,1721423447732,-500.0,0.00016438,2]
[332676421,1721423447742,-500.0,0.00016438,2]
[332676422,1721423447751,-602.85,0.00016438,2]
[332676423,1721423447761,-500.0,0.00016438,2]
[332676424,1721423447771,-500.50089956,0.00016438,2]
[332676425,1721423447781,-500.0,0.00016438,2]
[332676426,1721423447791,-500.0,0.00016438,2]
[332676427,1721423447800,-423.58981107,0.00016438,2]
[332676428,1721423447824,-76.41018893,0.00016438,2]
[332676429,1721423447834,-500.0,0.00016438,2]
[332676430,1721423447843,-510.68822699,0.00016438,2]
[332676431,1721423447852,-365.49888794,0.00016438,2]
[332676432,1721423447862,-500.0,0.00016438,2]
[332676433,1721423447871,-500.0,0.00016438,2]
[332676434,1721423447880,-500.0,0.00016438,2]
[332676435,1721423447893,-500.0,0.00016438,2]
[332676436,1721423447902,-500.0,0.00016438,2]
[332676437,1721423447912,-500.0,0.00016438,2]
[332676438,1721423447921,-500.0,0.00016438,2]
[332676439,1721423447932,-500.0,0.00016438,2]
[332676440,1721423447941,-900.29,0.00016438,2]
[332676441,1721423447950,-500.0,0.00016438,2]
[332676442,1721423447961,-500.0,0.00016438,2]
[332676443,1721423447971,-500.0,0.00016438,2]
[332676444,1721423447980,-500.0,0.00016438,2]
[332676445,1721423447990,-546.02,0.00016438,2]
[332676446,1721423448000,-500.0,0.00016438,2]
[332676447,1721423448010,-500.0,0.00016438,2]
[332676448,1721423448019,-519.21372656,0.00016438,2]
[332676449,1721423448028,-611.68,0.00016438,2]
[332676450,1721423448038,-264.22695068,0.00016438,2]
[332676451,1721423448047,-847.88,0.00016438,2]
[332676452,1721423448057,-500.0,0.00016438,2]
[332676453,1721423448067,-38.67329287,0.00016438,2]
[332676454,1721423508144,157.73576783,0.00010959,2]
[332676455,1721423508171,162.64423217,0.00010959,2]
[332676456,1721423518625,266.98,0.00010959,2]
[332676457,1721423529106,222.49,0.00010959,2]
[332676459,1721423539614,185.4,0.00010959,2]
[332676460,1721423550136,154.5,0.00010959,2]
[332676461,1721423560712,772.55,0.00010959,2]
[332676462,1721423569559,3085.40967143,0.00013283,2]
[332676463,1721423578222,157.73576783,0.00013283,2]
[332676465,1721424192651,3000.0,0.000214,30]
[332676466,1721424192978,3000.0,0.0002141,30]
[332676467,1721424193375,3000.0,0.0002142,30]
[332676468,1721424193778,5850.0,0.0002143,30]
[332676469,1721424270870,533.13715373,9.999e-05,2]
[332676471,1721424340189,-233.41353062,0.000144,2]
[332676472,1721424344485,400.0,0.00021,30]
[332676473,1721424383765,1035.50641116,9.999e-05,2]
[332676474,1721424406862,400.0,0.00024,120]
[332676475,1721424431147,-16.58646938,0.000144,2]
[332676476,1721424431171,-250.0,0.00014439,2]
[332676477,1721424431195,-250.0,0.00014479,2]
[332676478,1721424431217,-456.23981995,0.00014509,2]
[332676479,1721424432104,-2070.88409,0.00014509,2]
[332676480,1721424439134,-472.87609005,0.00014509,2]
[332676481,1721424439158,-250.0,0.00014518,2]
[332676482,1721424439181,-250.0,0.00014557,2]
[332676483,1721424439207,-704.81455111,0.00014591,2]
[332676484,1721424439231,-250.0,0.00014597,2]
[332676485,1721424439257,-250.0,0.00014636,2]
[332676486,1721424439283,-250.0,0.00014676,2]
[332676487,1721424439306,-250.0,0.00014715,2]
[332676488,1721424439330,-250.0,0.00014755,2]
[332676489,1721424439354,-250.0,0.00014794,2]
[332676490,1721424439375,-166.666666,0.00014795,2]
[332676491,1721424439401,-250.0,0.00014834,2]
[332676492,1721424439425,-250.0,0.00014873,2]
[332676493,1721424439448,-250.0,0.00014913,2]
[332676494,1721424439471,-250.0,0.00014952,2]
[332676495,1721424439494,-250.0,0.00014992,2]
[332676496,1721424439516,-201.738142,0.00015021,2]
[332676497,1721424439543,-250.0,0.00015031,2]
[332676498,1721424439571,-250.0,0.00015071,2]
[332676499,1721424439598,-250.0,0.0001511,2]
[332676500,1721424439623,-250.0,0.0001515,2]
[332676501,1721424439645,-300.0,0.0001515,2]
[332676502,1721424439672,-2013.12670216,0.0001561,2]
[332676503,1721424439695,-206.5463282,0.00015644,2]
[332676504,1721424439717,-710.01315412,0.00015708,2]
[332676505,1721424439746,-166.666668,0.00015708,2]
[332676506,1721424445103,-184.40740418,0.00015708,2]
[332676507,1721424446214,155.10844789,9.999e-05,2]
[332676514,1721424546135,-197.971165,0.000145,2]
[332676515,1721424556221,245.0,0.0001212,2]
[332676517,1721424598477,194.104698,9.999e-05,2]
[332676518,1721424598500,210.34057663,9.999e-05,2]
[332676520,1721424627200,608.01825837,0.00014691,2]
[332676521,1721424627221,165.405663,0.00014691,2]
[332676522,1721424627250,167.23088285,0.00014691,2]
[332676523,1721424627835,72.43208371,0.00014691,2]
[332676524,1721424627861,250.0,0.00014691,2]
[332676525,1721424627882,53.48981873,0.00014691,2]
[332676577,1721424633344,-604.99998376,0.0001561,2]
[332676579,1721424633357,-466.0,0.0001561,2]
[332676582,1721424633370,-690.48588063,0.0001561,2]
[332676584,1721424633379,-300.0,0.00015707,2]
[332676586,1721424633388,-5703.66381845,0.00015708,2]
[332676589,1721424633401,-4989.29778934,0.00015708,2]
[332676592,1721424633411,-2000.0,0.00015708,2]
[332676595,1721424633420,-2178.65947327,0.00015709,2]
[332676610,1721424633500,-3377.33911441,0.00015709,2]
[332676612,1721424633513,-2741.94484494,0.00015709,2]
[332676665,1721424638436,-510.94687324,0.00015709,2]
[332676667,1721424638526,-2756.6988607,0.00015709,2]
[332676744,1721424640621,-30743.15677755,0.00015709,2]
[332676751,1721424640868,-941.25374337,0.0001571,2]
[332676752,1721424640877,-8226.77293213,0.00015744,2]
[332676753,1721424640887,-211.4959571,0.00015753,2]
[332676754,1721424640896,-306.0,0.00015753,2]
[332676755,1721424640907,-153.0,0.0001589,2]
[332676756,1721424640916,-153.0,0.00015941,2]
[332676757,1721424640927,-153.0,0.00015941,2]
[332676758,1721424640936,-293.756678,0.00015973,2]
[332676759,1721424640947,-293.756678,0.00016078,2]
[332676760,1721424640957,-206.5463282,0.00016078,2]
[332676761,1721424640966,-293.756678,0.00016078,2]
[332676762,1721424640976,-267.3642005,0.000161,2]
[332676763,1721424640988,-153.0,0.000161,2]
[332676764,1721424640998,-153.0,0.000161,2]
[332676765,1721424641008,-153.0,0.000162,2]
[332676766,1721424641018,-253.4079656,0.000162,2]
[332676767,1721424641027,-232.2134397,0.00016273,2]
[332676768,1721424641037,-1722.72633408,0.00016338,2]
[332676769,1721424641046,-1761.48586436,0.00016347,2]
[332676770,1721424641056,-179.24277567,0.0001637,2]
[332676771,1721424641067,-5302.51874707,0.00016371,2]
[332676772,1721424641076,-70462.22272251,0.00016418,2]
[332676773,1721424641099,-3049.67494179,0.00016418,2]
[332676774,1721424641108,-500.0,0.00016427,2]
[332676775,1721424641118,-231.31742959,0.00016427,2]
[332676776,1721424641128,-162.44467497,0.00016427,2]
[332676777,1721424641138,-500.0,0.00016427,2]
[332676778,1721424641148,-322.72883465,0.00016427,2]
[332676779,1721424641158,-500.0,0.00016427,2]
[332676780,1721424641167,-201.64752813,0.00016427,2]
[332676781,1721424641177,-500.0,0.00016427,2]
[332676782,1721424641187,-500.0,0.00016427,2]
[332676783,1721424641198,-500.0,0.00016427,2]
[332676784,1721424641207,-221.26575044,0.00016427,2]
[332676785,1721424641217,-500.0,0.00016427,2]
[332676786,1721424641227,-427.15387983,0.00016427,2]
[332676787,1721424641240,-500.0,0.00016427,2]
[332676788,1721424641250,-500.0,0.00016427,2]
[332676789,1721424641262,-500.0,0.00016427,2]
[332676790,1721424641273,-363.35905294,0.00016427,2]
[332676791,1721424641282,-500.0,0.00016427,2]
[332676792,1721424641292,-500.0,0.00016427,2]
[332676793,1721424641303,-582.19254068,0.00016427,2]
[332676794,1721424641312,-157.26317248,0.00016427,2]
[332676795,1721424641322,-500.0,0.00016427,2]
[332676796,1721424641332,-216.92848898,0.00016427,2]
[332676797,1721424641343,-195.3588748,0.00016427,2]
[332676798,1721424641352,-500.0,0.00016427,2]
[332676799,1721424641362,-250.0,0.00016427,2]
[332676800,1721424641371,-147023.795329,0.00016428,2]
[332676801,1721424641381,-367.2522507,0.00016434,2]
[332676802,1721424641391,-500.0,0.00016438,2]
[332676803,1721424641401,-500.0,0.00016438,2]
[332676804,1721424641410,-500.0,0.00016438,2]
[332676805,1721424641419,-500.0,0.00016438,2]
[332676806,1721424641429,-500.0,0.00016438,2]
[332676807,1721424641439,-500.0,0.00016438,2]
[332676808,1721424641448,-500.0,0.00016438,2]
[332676809,1721424641458,-500.0,0.00016438,2]
[332676810,1721424641468,-503.42739605,0.00016438,2]
[332676811,1721424641478,-500.0,0.00016438,2]
[332676812,1721424641490,-500.0,0.00016438,2]
[332676813,1721424641499,-504.46940117,0.00016438,2]
[332676814,1721424641509,-500.0,0.00016438,2]
[332676815,1721424641519,-500.0,0.00016438,2]
[332676816,1721424641529,-500.0,0.00016438,2]
[332676817,1721424641538,-500.0,0.00016438,2]
[332676818,1721424641547,-500.0,0.00016438,2]
[332676819,1721424641557,-500.0,0.00016438,2]
[332676820,1721424641567,-500.0,0.00016438,2]
[332676821,1721424641577,-500.0,0.00016438,2]
[332676822,1721424641586,-227.68672824,0.00016438,2]
[332676823,1721424641595,-500.0,0.00016438,2]
[332676824,1721424641605,-500.0,0.00016438,2]
[332676825,1721424641616,-500.0,0.00016438,2]
[332676826,1721424641625,-500.0,0.00016438,2]
[332676827,1721424641637,-1063.55,0.00016438,2]
[332676828,1721424641647,-500.0,0.00016438,2]
[332676829,1721424641658,-560.69662456,0.00016438,2]
[332676830,1721424641668,-939.94,0.00016438,2]
[332676831,1721424641678,-500.0,0.00016438,2]
[332676832,1721424641687,-915.78,0.00016438,2]
[332676833,1721424641697,-500.0,0.00016438,2]
[332676834,1721424641707,-1197.25,0.00016438,2]
[332676835,1721424641717,-500.0,0.00016438,2]
[332676836,1721424641726,-500.0,0.00016438,2]
[332676837,1721424641739,-500.0,0.00016438,2]
[332676838,1721424641750,-503.22640116,0.00016438,2]
[332676839,1721424641759,-500.0,0.00016438,2]
[332676840,1721424641769,-777.0,0.00016438,2]
[332676841,1721424641779,-500.0,0.00016438,2]
[332676842,1721424641788,-500.0,0.00016438,2]
[332676843,1721424641797,-509.94,0.00016438,2]
[332676844,1721424641807,-503.86490173,0.00016438,2]
[332676845,1721424641817,-500.0,0.00016438,2]
[332676846,1721424641827,-500.0,0.00016438,2]
[332676847,1721424641837,-500.0,0.00016438,2]
[332676848,1721424641846,-500.0,0.00016438,2]
[332676849,1721424641856,-500.0,0.00016438,2]
[332676850,1721424641865,-500.0,0.00016438,2]
[332676851,1721424641875,-500.0,0.00016438,2]
[332676852,1721424641884,-500.0,0.00016438,2]
[332676853,1721424641894,-500.0,0.00016438,2]
[332676854,1721424641904,-500.0,0.00016438,2]
[332676855,1721424641913,-500.0,0.00016438,2]
[332676856,1721424641923,-500.0,0.00016438,2]
[332676857,1721424641933,-500.0,0.00016438,2]
[332676858,1721424641942,-500.0,0.00016438,2]
[332676859,1721424641952,-500.0,0.00016438,2]
[332676860,1721424641961,-500.0,0.00016438,2]
[332676861,1721424641971,-500.0,0.00016438,2]
[332676862,1721424641981,-500.0,0.00016438,2]
[332676863,1721424641992,-500.0,0.00016438,2]
[332676864,1721424642001,-500.0,0.00016438,2]
[332676865,1721424642010,-334.88,0.00016438,2]
[332676866,1721424642020,-679.63,0.00016438,2]
[332676867,1721424642030,-500.0,0.00016438,2]
[332676868,1721424642040,-507.59370746,0.00016438,2]
[332676869,1721424642049,-500.0,0.00016438,2]
[332676870,1721424642058,-506.90674039,0.00016438,2]
[332676871,1721424642068,-500.0,0.00016438,2]
[332676872,1721424642078,-500.0,0.00016438,2]
[332676873,1721424642087,-500.0,0.00016438,2]
[332676874,1721424642097,-500.0,0.00016438,2]
[332676875,1721424642106,-823.74,0.00016438,2]
[332676876,1721424642115,-500.0,0.00016438,2]
[332676877,1721424642125,-706.9,0.00016438,2]
[332676878,1721424642135,-500.0,0.00016438,2]
[332676879,1721424642144,-500.0,0.00016438,2]
[332676880,1721424642154,-500.0,0.00016438,2]
[332676881,1721424642163,-500.0,0.00016438,2]
[332676882,1721424642172,-500.0,0.00016438,2]
[332676883,1721424642183,-500.0,0.00016438,2]
[332676884,1721424642193,-500.0,0.00016438,2]
[332676885,1721424642203,-500.0,0.00016438,2]
[332676886,1721424642213,-590.65,0.00016438,2]
[332676887,1721424642223,-500.0,0.00016438,2]
[332676888,1721424642239,-500.0,0.00016438,2]
[332676889,1721424642251,-500.0,0.00016438,2]
[332676890,1721424642264,-500.0,0.00016438,2]
[332676891,1721424642276,-500.0,0.00016438,2]
[332676892,1721424642287,-503.65426862,0.00016438,2]
[332676893,1721424642297,-500.0,0.00016438,2]
[332676894,1721424642307,-1294.57,0.00016438,2]
[332676895,1721424642317,-500.0,0.00016438,2]
[332676896,1721424642327,-517.65902373,0.00016438,2]
[332676897,1721424642337,-585.79544352,0.00016438,2]
[332676898,1721424642349,-500.0,0.00016438,2]
[332676899,1721424642360,-500.0,0.00016438,2]
[332676900,1721424642371,-500.0,0.00016438,2]
[332676901,1721424642381,-500.0,0.00016438,2]
[332676902,1721424642393,-500.0,0.00016438,2]
[332676903,1721424642403,-500.0,0.00016438,2]
[332676904,1721424642413,-500.0,0.00016438,2]
[332676905,1721424642423,-500.0,0.00016438,2]
[332676906,1721424642432,-500.0,0.00016438,2]
[332676907,1721424642442,-500.0,0.00016438,2]
[332676908,1721424642452,-500.0,0.00016438,2]
[332676909,1721424642462,-500.0,0.00016438,2]
[332676910,1721424642471,-500.0,0.00016438,2]
[332676911,1721424642481,-500.0,0.00016438,2]
[332676912,1721424642500,-500.0,0.00016438,2]
[332676913,1721424642510,-634.97,0.00016438,2]
[332676914,1721424642520,-500.0,0.00016438,2]
[332676915,1721424642530,-500.0,0.00016438,2]
[332676916,1721424642540,-500.0,0.00016438,2]
[332676917,1721424642549,-500.0,0.00016438,2]
[332676918,1721424642559,-500.0,0.00016438,2]
[332676919,1721424642569,-500.0,0.00016438,2]
[332676920,1721424642579,-500.0,0.00016438,2]
[332676921,1721424642588,-552.60727105,0.00016438,2]
[332676922,1721424642598,-509.48490788,0.00016438,2]
[332676923,1721424642607,-549.26977682,0.00016438,2]
[332676924,1721424642617,-502.38764102,0.00016438,2]
[332676925,1721424642626,-500.0,0.00016438,2]
[332676926,1721424642635,-500.0,0.00016438,2]
[332676927,1721424642645,-500.0,0.00016438,2]
[332676928,1721424642655,-500.0,0.00016438,2]
[332676929,1721424642665,-500.0,0.00016438,2]
[332676930,1721424642675,-527.50930083,0.00016438,2]
[332676931,1721424642684,-500.0,0.00016438,2]
[332676932,1721424642693,-500.0,0.00016438,2]
[332676933,1721424642703,-500.0,0.00016438,2]
[332676934,1721424642712,-500.0,0.00016438,2]
[332676935,1721424642721,-500.0,0.00016438,2]
[332676936,1721424642730,-500.0,0.00016438,2]
[332676937,1721424642747,-500.0,0.00016438,2]
[332676938,1721424642756,-517.83614114,0.00016438,2]
[332676939,1721424642766,-500.0,0.00016438,2]
[332676940,1721424642775,-484.60275525,0.00016438,2]
[332676941,1721424642784,-500.0,0.00016438,2]
[332676942,1721424642794,-780.9,0.00016438,2]
[332676943,1721424642803,-556.38999052,0.00016438,2]
[332676944,1721424642812,-500.0,0.00016438,2]
[332676945,1721424642822,-510.71541693,0.00016438,2]
[332676946,1721424642831,-500.0,0.00016438,2]
[332676947,1721424642840,-1066.68,0.00016438,2]
[332676948,1721424642849,-500.0,0.00016438,2]
[332676949,1721424642859,-500.0,0.00016438,2]
[332676950,1721424642868,-500.0,0.00016438,2]
[332676951,1721424642878,-500.0,0.00016438,2]
[332676953,1721424642887,-517.22428827,0.00016438,2]
[332676954,1721424642897,-500.0,0.00016438,2]
[332676955,1721424642906,-500.0,0.00016438,2]
[332676956,1721424642916,-500.0,0.00016438,2]
[332676957,1721424642925,-500.0,0.00016438,2]
[332676958,1721424642935,-505.84,0.00016438,2]
[332676959,1721424642944,-500.0,0.00016438,2]
[332676960,1721424642953,-770.84,0.00016438,2]
[332676962,1721424642963,-501.06330563,0.00016438,2]
[332676963,1721424642972,-500.0,0.00016438,2]
[332676964,1721424642981,-500.0,0.00016438,2]
[332676965,1721424642999,-500.0,0.00016438,2]
[332676966,1721424643009,-500.0,0.00016438,2]
[332676967,1721424643018,-500.0,0.00016438,2]
[332676968,1721424643028,-582.35,0.00016438,2]
[332676970,1721424643038,-500.0,0.00016438,2]
[332676971,1721424643047,-515.61362713,0.00016438,2]
[332676972,1721424643056,-500.0,0.00016438,2]
[332676973,1721424643065,-500.0,0.00016438,2]
[332676974,1721424643074,-500.0,0.00016438,2]
[332676975,1721424643083,-501.41769776,0.00016438,2]
[332676976,1721424643093,-500.0,0.00016438,2]
[332676977,1721424643102,-604.53,0.00016438,2]
[332676979,1721424643112,-556.33,0.00016438,2]
[332676980,1721424643121,-500.0,0.00016438,2]
[332676981,1721424643131,-500.0,0.00016438,2]
[332676982,1721424643140,-500.0,0.00016438,2]
[332676983,1721424643149,-500.0,0.00016438,2]
[332676984,1721424643159,-500.0,0.00016438,2]